fUSD/lending_fUSD_20250209
["ID","MTS","AMOUNT","RATE_DAILY","PERIOD"]
[352384297,1739069465487,-500.0,0.00011221,2]
[352384298,1739069465496,-500.0,0.00011221,2]
[352384299,1739069465505,-150.0,0.00011221,2]
[352384300,1739069465514,-1572.53,0.00011221,2]
[352384301,1739069465524,-1155.73,0.00011221,2]
[352384302,1739069465534,-858.34,0.00011221,2]
[352384303,1739069465543,-500.0,0.00011221,2]
[352384304,1739069465553,-1151.5,0.00011221,2]
[352384305,1739069465562,-782.41,0.00011221,2]
[352384306,1739069465572,-1084.12,0.00011221,2]
[352384307,1739069465581,-500.0,0.00011221,2]
[352384308,1739069465590,-667.59,0.00011221,2]
[352384309,1739069465603,-2395.35,0.00011221,2]
[352384310,1739069465613,-608.93,0.00011221,2]
[352384311,1739069465623,-1744.39,0.00011221,2]
[352384312,1739069465633,-713.37,0.00011221,2]
[352384313,1739069465643,-1920.7,0.00011221,2]
[352384314,1739069465652,-1775.02,0.00011221,2]
[352384315,1739069465662,-500.0,0.00011221,2]
[352384316,1739069465671,-998.71,0.00011221,2]
[352384317,1739069465681,-674.24,0.00011221,2]
[352384318,1739069465690,-1286.34,0.00011221,2]
[352384319,1739069465700,-785.89,0.00011221,2]
[352384320,1739069465709,-1431.71,0.00011221,2]
[352384321,1739069465719,-2291.65,0.00011221,2]
[352384322,1739069465729,-500.0,0.00011221,2]
[352384323,1739069465739,-531.34,0.00011221,2]
[352384324,1739069465749,-984.4,0.00011221,2]
[352384325,1739069465759,-918.47,0.00011221,2]
[352384326,1739069465768,-500.0,0.00011221,2]
[352384327,1739069465779,-1681.15,0.00011221,2]
[352384328,1739069465788,-586.82,0.00011221,2]
[352384329,1739069465798,-652.27,0.00011221,2]
[352384330,1739069465807,-906.36,0.00011221,2]
[352384331,1739069465816,-2072.47,0.00011221,2]
[352384332,1739069465826,-545.48,0.00011221,2]
[352384333,1739069465836,-852.61,0.00011221,2]
[352384334,1739069465845,-608.57849781,0.00011221,2]
[352384335,1739069465855,-1204.52,0.00011221,2]
[352384336,1739069465864,-581.58,0.00011221,2]
[352384337,1739069465874,-1195.82,0.00011221,2]
[352384338,1739069465884,-500.0,0.00011221,2]
[352384339,1739069465894,-1261.96,0.00011221,2]
[352384340,1739069465903,-1407.94,0.00011221,2]
[352384341,1739069465912,-885.46,0.00011221,2]
[352384342,1739069465921,-382.33,0.00011222,2]
[352384343,1739069465931,-4677.96,0.00011222,2]
[352384344,1739069465940,-1113.07,0.00011222,2]
[352384345,1739069465950,-1207.41,0.00011222,2]
[352384346,1739069465959,-1237.76,0.00011222,2]
[352384347,1739069465969,-2295.98,0.00011222,2]
[352384348,1739069465978,-918.0,0.00011222,2]
[352384349,1739069465988,-974.27,0.00011222,2]
[352384350,1739069465997,-1487.4,0.00011222,2]
[352384351,1739069466007,-1078.29,0.00011222,2]
[352384352,1739069466016,-1542.41,0.00011222,2]
[352384353,1739069466027,-1875.97,0.00011222,2]
[352384354,1739069466036,-500.0,0.00011232,2]
[352384355,1739069466046,-591.94695258,0.00011232,2]
[352384356,1739069466055,-500.0,0.00011232,2]
[352384357,1739069466064,-500.0,0.00011232,2]
[352384358,1739069466077,-500.0,0.00011232,2]
[352384359,1739069466086,-500.0,0.00011232,2]
[352384360,1739069466096,-500.0,0.00011232,2]
[352384361,1739069466105,-500.0,0.00011232,2]
[352384362,1739069466115,-500.0,0.00011232,2]
[352384363,1739069466125,-500.0,0.00011232,2]
[352384364,1739069466134,-500.0,0.00011232,2]
[352384365,1739069466144,-500.0,0.00011232,2]
[352384366,1739069466154,-500.0,0.00011232,2]
[352384367,1739069466163,-500.0,0.00011232,2]
[352384368,1739069466172,-582.66237151,0.00011232,2]
[352384369,1739069466181,-264.71453391,0.00011232,2]
[352384370,1739069466190,-500.0,0.00011232,2]
[352384371,1739069466199,-579.76,0.00011232,2]
[352384372,1739069466209,-576.76,0.00011232,2]
[352384373,1739069466219,-585.88,0.00011232,2]
[352384374,1739069466229,-651.15,0.00011232,2]
[352384375,1739069466242,-500.0,0.00011232,2]
[352384376,1739069466252,-547.68641011,0.00011232,2]
[352384377,1739069466261,-500.0,0.00011232,2]
[352384378,1739069466271,-351.54931143,0.00011232,2]
[352384379,1739069466283,-500.0,0.00011232,2]
[352384380,1739069466293,-792.41,0.00011232,2]
[352384381,1739069466302,-500.0,0.00011232,2]
[352384382,1739069466312,-948.02,0.00011232,2]
[352384383,1739069466322,-816.74,0.00011232,2]
[352384384,1739069466332,-500.0,0.00011232,2]
[352384385,1739069466342,-500.0,0.00011232,2]
[352384386,1739069466353,-300.0,0.00011232,2]
[352384387,1739069466363,-150.0,0.00011233,2]
[352384388,1739069466372,-4041.22737348,0.00011233,2]
[352384389,1739069466382,-500.0,0.00011233,2]
[352384390,1739069466392,-248.54458418,0.00011233,2]
[352384391,1739069466402,-500.0,0.00011233,2]
[352384392,1739069466412,-150.0,0.00011233,2]
[352384393,1739069466422,-1384.0,0.00011233,2]
[352384394,1739069466432,-150.0,0.00011233,2]
[352384395,1739069466441,-177.28456813,0.00011233,2]
[352384396,1739069466450,-150.0,0.00011233,2]
[352384397,1739069466461,-250.17820711,0.00011233,2]
[352384398,1739069466471,-2650.59409803,0.00011233,2]
[352384399,1739069466480,-150.0,0.00011233,2]
[352384400,1739069466490,-1229.59085875,0.00011233,2]
[352384401,1739069466499,-150.0,0.00011233,2]
[352384402,1739069466509,-57004.58668502,0.00011233,2]
[352384403,1739069466519,-2456.79114,0.00011233,2]
[352384404,1739069466528,-150.0,0.00011257,2]
[352384405,1739069466538,-500.0,0.0001126,2]
[352384406,1739069466547,-500.0,0.0001126,2]
[352384407,1739069466557,-1384.0,0.0001126,2]
[352384408,1739069466567,-150.0,0.00011262,2]
[352384409,1739069466576,-500.0,0.00011288,2]
[352384410,1739069466586,-500.0,0.00011288,2]
[352384411,1739069466595,-1384.0,0.00011288,2]
[352384412,1739069466605,-995.5,0.0001129,2]
[352384413,1739069466614,-754.344585,0.0001129,2]
[352384414,1739069466624,-837.418506,0.0001129,2]
[352384415,1739069466634,-571.5,0.0001129,2]
[352384416,1739069466643,-1439.98,0.0001129,2]
[352384417,1739069466653,-1335.02,0.0001129,2]
[352384418,1739069466662,-559.11,0.0001129,2]
[352384419,1739069466672,-1093.73,0.0001129,2]
[352384420,1739069466682,-803.53,0.0001129,2]
[352384421,1739069466691,-1890.81,0.0001129,2]
[352384422,1739069466701,-1559.98,0.0001129,2]
[352384423,1739069466711,-967.4,0.0001129,2]
[352384424,1739069466721,-1029.95,0.0001129,2]
[352384425,1739069466731,-920.97,0.0001129,2]
[352384426,1739069466740,-1867.45,0.0001129,2]
[352384427,1739069466750,-789.25,0.0001129,2]
[352384428,1739069466760,-3744.99,0.0001129,2]
[352384429,1739069466769,-1560.02,0.0001129,2]
[352384430,1739069466779,-736.32,0.0001129,2]
[352384431,1739069466789,-2494.58,0.0001129,2]
[352384432,1739069466799,-947.08,0.0001129,2]
[352384433,1739069466809,-1906.86,0.0001129,2]
[352384434,1739069466819,-1559.78,0.0001129,2]
[352384435,1739069466829,-3359.76,0.0001129,2]
[352384436,1739069466839,-1389.48,0.0001129,2]
[352384437,1739069466848,-1064.16,0.0001129,2]
[352384438,1739069466858,-630.3,0.0001129,2]
[352384439,1739069466868,-999.14,0.0001129,2]
[352384440,1739069466878,-1578.2,0.0001129,2]
[352384441,1739069466887,-1129.0,0.0001129,2]
[352384442,1739069466897,-1301.09,0.0001129,2]
[352384443,1739069466907,-1291.18,0.0001129,2]
[352384444,1739069466917,-1876.52,0.0001129,2]
[352384445,1739069466926,-1866.23,0.0001129,2]
[352384446,1739069466935,-2220.41,0.0001129,2]
[352384447,1739069466945,-1564.75,0.0001129,2]
[352384448,1739069466955,-926.11,0.0001129,2]
[352384449,1739069466964,-1329.14,0.0001129,2]
[352384450,1739069466975,-2507.15,0.0001129,2]
[352384451,1739069466985,-587.83,0.0001129,2]
[352384452,1739069466995,-853.77,0.0001129,2]
[352384453,1739069467005,-1628.99,0.0001129,2]
[352384454,1739069467014,-954.02,0.0001129,2]
[352384455,1739069467025,-938.82,0.0001129,2]
[352384456,1739069467035,-1573.35,0.0001129,2]
[352384457,1739069467045,-1805.8,0.0001129,2]
[352384458,1739069467055,-774.74,0.0001129,2]
[352384459,1739069467064,-611.09,0.0001129,2]
[352384460,1739069467074,-500.0,0.0001129,2]
[352384461,1739069467083,-150.0,0.00011297,2]
[352384462,1739069467093,-1044.0,0.000113,2]
[352384463,1739069467102,-150.0,0.00011302,2]
[352384464,1739069467112,-500.0,0.00011315,2]
[352384465,1739069467121,-500.0,0.00011315,2]
[352384466,1739069467131,-1384.0,0.00011315,2]
[352384467,1739069467141,-500.0,0.00011327,2]
[352384468,1739069467150,-500.0,0.00011343,2]
[352384469,1739069467161,-1384.0,0.00011343,2]
[352384470,1739069467171,-300.0,0.00011357,2]
[352384471,1739069467180,-500.0,0.00011358,2]
[352384472,1739069467190,-812.04,0.00011358,2]
[352384473,1739069467200,-500.0,0.00011358,2]
[352384474,1739069467209,-650.98,0.00011358,2]
[352384475,1739069467219,-725.66,0.00011358,2]
[352384476,1739069467229,-626.3,0.00011358,2]
[352384477,1739069467241,-686.17,0.00011358,2]
[352384478,1739069467252,-751.94,0.00011358,2]
[352384479,1739069467262,-809.56,0.00011358,2]
[352384480,1739069467272,-500.0,0.00011358,2]
[352384481,1739069467283,-850.73,0.00011358,2]
[352384482,1739069467293,-810.94,0.00011358,2]
[352384483,1739069467303,-500.0,0.00011358,2]
[352384484,1739069467312,-500.0,0.00011358,2]
[352384485,1739069467322,-819.57,0.00011358,2]
[352384486,1739069467331,-556.76,0.00011358,2]
[352384487,1739069467341,-881.6,0.00011358,2]
[352384488,1739069467351,-822.99,0.00011358,2]
[352384489,1739069467360,-720.56,0.00011358,2]
[352384490,1739069467370,-695.07,0.00011358,2]
[352384491,1739069467379,-788.71,0.00011358,2]
[352384492,1739069467389,-793.3,0.00011358,2]
[352384493,1739069467399,-775.16,0.00011358,2]
[352384494,1739069467409,-760.1,0.00011358,2]
[352384495,1739069467419,-646.22,0.00011358,2]
[352384496,1739069467428,-500.0,0.00011358,2]
[352384497,1739069467438,-500.0,0.00011358,2]
[352384498,1739069467447,-1572.53,0.00011358,2]
[352384499,1739069467458,-1155.73,0.00011358,2]
[352384500,1739069467467,-858.34,0.00011358,2]
[352384501,1739069467477,-197.04797185,0.00011358,2]
[352384502,1739069467487,-1151.5,0.00011358,2]
[352384503,1739069467496,-782.41,0.00011358,2]
[352384504,1739069467506,-1084.12,0.00011358,2]
[352384505,1739069467515,-500.0,0.00011358,2]
[352384506,1739069467525,-667.59,0.00011358,2]
[352384507,1739069467535,-2395.35,0.00011358,2]
[352384508,1739069467545,-608.93,0.00011358,2]
[352384509,1739069467554,-1744.39,0.00011358,2]
[352384510,1739069467564,-713.37,0.00011358,2]
[352384511,1739069467573,-1920.7,0.00011358,2]
[352384512,1739069467583,-1775.02,0.00011358,2]
[352384513,1739069467592,-500.0,0.00011358,2]
[352384514,1739069467602,-998.71,0.00011358,2]
[352384515,1739069467611,-674.24,0.00011358,2]
[352384516,1739069467620,-1286.34,0.00011358,2]
[352384517,1739069467630,-785.89,0.00011358,2]
[352384518,1739069467639,-1431.71,0.00011358,2]
[352384519,1739069467648,-2291.65,0.00011358,2]
[352384520,1739069467658,-500.0,0.00011358,2]
[352384521,1739069467668,-531.34,0.00011358,2]
[352384522,1739069467678,-984.4,0.00011358,2]
[352384523,1739069467688,-918.47,0.00011358,2]
[352384524,1739069467699,-500.0,0.00011358,2]
[352384525,1739069467708,-1681.15,0.00011358,2]
[352384526,1739069467718,-586.82,0.00011358,2]
[352384527,1739069467728,-652.27,0.00011358,2]
[352384528,1739069467738,-906.36,0.00011358,2]
[352384529,1739069467748,-2072.47,0.00011358,2]
[352384530,1739069467758,-545.48,0.00011358,2]
[352384531,1739069467767,-852.61,0.00011358,2]
[352384532,1739069467778,-1204.52,0.00011358,2]
[352384533,1739069467788,-581.58,0.00011358,2]
[352384534,1739069467798,-1195.82,0.00011358,2]
[352384535,1739069467807,-500.0,0.00011358,2]
[352384536,1739069467817,-1261.96,0.00011358,2]
[352384537,1739069467952,-1407.94,0.00011358,2]
[352384538,1739069467988,-885.46,0.00011358,2]
[352384539,1739069467998,-4677.96,0.00011359,2]
[352384540,1739069468007,-1113.07,0.00011359,2]
[352384541,1739069468017,-1207.41,0.00011359,2]
[352384542,1739069468026,-1237.76,0.00011359,2]
[352384543,1739069468036,-2295.98,0.00011359,2]
[352384544,1739069468046,-918.0,0.00011359,2]
[352384545,1739069468055,-974.27,0.00011359,2]
[352384546,1739069468064,-1487.4,0.00011359,2]
[352384547,1739069468074,-1078.29,0.00011359,2]
[352384548,1739069468084,-1542.41,0.00011359,2]
[352384549,1739069468094,-1875.97,0.00011359,2]
[352384550,1739069468103,-500.0,0.00011369,2]
[352384551,1739069468112,-500.0,0.00011369,2]
[352384552,1739069468121,-500.0,0.00011369,2]
[352384553,1739069468130,-500.0,0.00011369,2]
[352384554,1739069468139,-500.0,0.00011369,2]
[352384555,1739069468148,-500.0,0.00011369,2]
[352384556,1739069468158,-262.36469041,0.00011369,2]
[352384557,1739069468167,-500.0,0.00011369,2]
[352384558,1739069468176,-500.0,0.00011369,2]
[352384559,1739069468185,-500.0,0.00011369,2]
[352384560,1739069468194,-500.0,0.00011369,2]
[352384561,1739069468202,-171.64289345,0.00011369,2]
[352384562,1739069468212,-500.0,0.00011369,2]
[352384563,1739069468221,-500.0,0.00011369,2]
[352384564,1739069468230,-579.76,0.00011369,2]
[352384565,1739069468245,-576.76,0.00011369,2]
[352384566,1739069468256,-304.72088779,0.00011369,2]
[352384567,1739069468478,-281.15911221,0.00011369,2]
[352384568,1739069468488,-651.15,0.00011369,2]
[352384569,1739069468497,-500.0,0.00011369,2]
[352384570,1739069468506,-500.0,0.00011369,2]
[352384571,1739069468515,-500.0,0.00011369,2]
[352384572,1739069468525,-295.28169092,0.00011369,2]
[352384573,1739069468537,-432.86,0.00011369,2]
[352384574,1739069468549,-64.26830908,0.00011369,2]
[352384575,1739069468558,-500.0,0.00011369,2]
[352384576,1739069468567,-948.02,0.00011369,2]
[352384577,1739069468576,-816.74,0.00011369,2]
[352384578,1739069468585,-416.55997608,0.00011369,2]
[352384579,1739069468596,-435.37625369,0.00011369,2]
[352384580,1739069468606,-151.0,0.00011369,2]
[352384581,1739069468616,-151.0,0.00011369,2]
[352384582,1739069468627,-151.0,0.00011369,2]
[352384583,1739069468637,-151.0,0.00011369,2]
[352384584,1739069468646,-151.0,0.00011369,2]
[352384585,1739069468655,-151.0,0.00011369,2]
[352384586,1739069468665,-151.0,0.00011369,2]
[352384587,1739069468675,-151.0,0.00011369,2]
[352384588,1739069468684,-151.0,0.00011369,2]
[352384589,1739069468694,-151.0,0.00011369,2]
[352384590,1739069468703,-151.0,0.00011369,2]
[352384591,1739069468713,-151.0,0.00011369,2]
[352384592,1739069468722,-151.0,0.00011369,2]
[352384593,1739069468731,-151.0,0.00011369,2]
[352384594,1739069468741,-151.0,0.00011369,2]
[352384595,1739069468751,-545.67929849,0.0001137,2]
[352384596,1739069468761,-1384.0,0.0001137,2]
[352384597,1739069468771,-497.12954415,0.00011385,2]
[352384598,1739069468781,-1384.0,0.00011397,2]
[352384599,1739069468792,-1000.0,0.000114,2]
[352384600,1739069468801,-205.67765474,0.00011406,2]
[352384601,1739069468810,-1384.0,0.00011425,2]
[352384602,1739069468819,-995.5,0.00011427,2]
[352384603,1739069468828,-754.344585,0.00011427,2]
[352384604,1739069468837,-837.418506,0.00011427,2]
[352384605,1739069468847,-571.5,0.00011427,2]
[352384606,1739069468856,-1439.98,0.00011427,2]
[352384607,1739069468866,-1335.02,0.00011427,2]
[352384608,1739069468875,-559.11,0.00011427,2]
[352384609,1739069468885,-1093.73,0.00011427,2]
[352384610,1739069468895,-292.61278008,0.00011427,2]
[352384611,1739069468907,-510.91721992,0.00011427,2]
[352384612,1739069468917,-84.25401539,0.00011427,2]
[352384613,1739069468928,-1806.55598461,0.00011427,2]
[352384614,1739069468938,-1559.98,0.00011427,2]
[352384615,1739069468948,-967.4,0.00011427,2]
[352384616,1739069468957,-1029.95,0.00011427,2]
[352384617,1739069468966,-920.97,0.00011427,2]
[352384618,1739069468975,-1867.45,0.00011427,2]
[352384619,1739069468985,-789.25,0.00011427,2]
[352384620,1739069468994,-3744.99,0.00011427,2]
[352384621,1739069469003,-1560.02,0.00011427,2]
[352384622,1739069469012,-736.32,0.00011427,2]
[352384623,1739069469022,-2494.58,0.00011427,2]
[352384624,1739069469032,-947.08,0.00011427,2]
[352384625,1739069469041,-1906.86,0.00011427,2]
[352384626,1739069469050,-1559.78,0.00011427,2]
[352384627,1739069469059,-3359.76,0.00011427,2]
[352384628,1739069469069,-1389.48,0.00011427,2]
[352384629,1739069469078,-1064.16,0.00011427,2]
[352384630,1739069469087,-630.3,0.00011427,2]
[352384631,1739069469097,-999.14,0.00011427,2]
[352384632,1739069469107,-1578.2,0.00011427,2]
[352384633,1739069469116,-1129.0,0.00011427,2]
[352384634,1739069469126,-1301.09,0.00011427,2]
[352384635,1739069469135,-1291.18,0.00011427,2]
[352384636,1739069469145,-1876.52,0.00011427,2]
[352384637,1739069469154,-1866.23,0.00011427,2]
[352384638,1739069469163,-2220.41,0.00011427,2]
[352384639,1739069469173,-1564.75,0.00011427,2]
[352384640,1739069469182,-926.11,0.00011427,2]
[352384641,1739069469191,-1329.14,0.00011427,2]
[352384642,1739069469200,-2507.15,0.00011427,2]
[352384643,1739069469210,-587.83,0.00011427,2]
[352384644,1739069469220,-3.65637891,0.00011427,2]
[352384645,1739069469242,-473.861,0.00011427,2]
[352384646,1739069469254,-376.25262109,0.00011427,2]
[352384647,1739069469264,-1628.99,0.00011427,2]
[352384648,1739069469273,-954.02,0.00011427,2]
[352384649,1739069469286,-938.82,0.00011427,2]
[352384650,1739069469296,-1573.35,0.00011427,2]
[352384651,1739069469305,-1805.8,0.00011427,2]
[352384652,1739069469315,-774.74,0.00011427,2]
[352384653,1739069469324,-611.09,0.00011427,2]
[352384654,1739069469334,-500.0,0.00011427,2]
[352384655,1739069469343,-150.0,0.00011432,2]
[352384656,1739069469353,-823.0,0.00011449,2]
[352384657,1739069469362,-1384.0,0.00011452,2]
[352384658,1739069469371,-150.0,0.00011462,2]
[352384659,1739069469381,-276.14961041,0.00011464,2]
[352384660,1739069469392,-271.92,0.00011464,2]
[352384661,1739069469403,-385.11811715,0.00011464,2]
[352384662,1739069469412,-1384.0,0.0001148,2]
[352384663,1739069469422,-791.96,0.00011492,2]
[352384664,1739069469431,-150.0,0.00011492,2]
[352384665,1739069469440,-150.0,0.00011494,2]
[352384666,1739069469449,-150.0,0.00011494,2]
[352384667,1739069469458,-500.0,0.00011495,2]
[352384668,1739069469468,-812.04,0.00011495,2]
[352384669,1739069469477,-500.0,0.00011495,2]
[352384670,1739069469487,-373.93182298,0.00011495,2]
[352384671,1739069469514,-500.0,0.00010399,2]
[352384672,1739069469523,-16.93219801,0.00011369,2]
[352384673,1739069469732,-500.0,0.00010536,2]
[352384674,1739069469742,-500.0,0.00010673,2]
[352384675,1739069469752,-65.83165509,0.0001081,2]
[352384676,1739069469765,-337.2337,0.0001081,2]
[352384677,1739069469779,-96.93464491,0.0001081,2]
[352384678,1739069469788,-153.578,0.00010855,2]
[352384679,1739069469799,-53.48735509,0.00011369,2]
[352384680,1739069469818,-80.5804469,0.00011369,2]
[352384681,1739069469828,-151.0,0.00011369,2]
[352384682,1739069469838,-151.0,0.00011369,2]
[352384683,1739069469848,-87.18234156,0.00011369,2]
[352384684,1739069469860,-63.81765844,0.00011369,2]
[352384685,1739069469870,-151.0,0.00011369,2]
[352384686,1739069469880,-151.0,0.00011369,2]
[352384687,1739069469890,-151.0,0.00011369,2]
[352384688,1739069469899,-277.04817702,0.00011495,2]
[352384689,1739069469910,-725.66,0.00011495,2]
[352384690,1739069469919,-626.3,0.00011495,2]
[352384691,1739069469929,-686.17,0.00011495,2]
[352384692,1739069469941,-751.94,0.00011495,2]
[352384693,1739069469950,-809.56,0.00011495,2]
[352384694,1739069469959,-500.0,0.00011495,2]
[352384695,1739069469971,-850.73,0.00011495,2]
[352384696,1739069469981,-810.94,0.00011495,2]
[352384697,1739069469991,-500.0,0.00011495,2]
[352384698,1739069470000,-500.0,0.00011495,2]
[352384699,1739069470010,-819.57,0.00011495,2]
[352384700,1739069470019,-556.76,0.00011495,2]
[352384701,1739069470030,-881.6,0.00011495,2]
[352384702,1739069470040,-822.99,0.00011495,2]
[352384703,1739069470049,-720.56,0.00011495,2]
[352384704,1739069470058,-695.07,0.00011495,2]
[352384705,1739069470067,-788.71,0.00011495,2]
[352384706,1739069470076,-793.3,0.00011495,2]
[352384707,1739069470085,-775.16,0.00011495,2]
[352384708,1739069470094,-760.1,0.00011495,2]
[352384709,1739069470103,-646.22,0.00011495,2]
[352384710,1739069470114,-500.0,0.00011495,2]
[352384711,1739069470123,-500.0,0.00011495,2]
[352384712,1739069470132,-1572.53,0.00011495,2]
[352384713,1739069470142,-1155.73,0.00011495,2]
[352384714,1739069470151,-858.34,0.00011495,2]
[352384715,1739069470161,-282.8299014,0.00011495,2]
[352384716,1739069470173,-868.6700986,0.00011495,2]
[352384717,1739069470183,-782.41,0.00011495,2]
[352384718,1739069470192,-1084.12,0.00011495,2]
[352384719,1739069470202,-500.0,0.00011495,2]
[352384720,1739069470211,-513.7999014,0.00011495,2]
[352384721,1739069470222,-153.7900986,0.00011495,2]
[352384722,1739069470232,-2395.35,0.00011495,2]
[352384723,1739069470245,-608.93,0.00011495,2]
[352384724,1739069470255,-1192.9299014,0.00011495,2]
[352384725,1739069470310,-551.4600986,0.00011495,2]
[352384726,1739069470321,-713.37,0.00011495,2]
[352384727,1739069470331,-1920.7,0.00011495,2]
[352384728,1739069470340,-1775.02,0.00011495,2]
[352384729,1739069470349,-500.0,0.00011495,2]
[352384730,1739069470359,-998.71,0.00011495,2]
[352384731,1739069470368,-674.24,0.00011495,2]
[352384732,1739069470377,-1286.34,0.00011495,2]
[352384733,1739069470387,-785.89,0.00011495,2]
[352384734,1739069470395,-1431.71,0.00011495,2]
[352384735,1739069470405,-2291.65,0.00011495,2]
[352384736,1739069470414,-500.0,0.00011495,2]
[352384737,1739069470424,-531.34,0.00011495,2]
[352384738,1739069470433,-984.4,0.00011495,2]
[352384739,1739069470443,-918.47,0.00011495,2]
[352384740,1739069470458,-500.0,0.00011495,2]
[352384741,1739069470468,-1681.15,0.00011495,2]
[352384742,1739069470477,-150.0,0.00011495,2]
[352384743,1739069470487,-586.82,0.00011495,2]
[352384744,1739069470496,-652.27,0.00011495,2]
[352384745,1739069470505,-906.36,0.00011495,2]
[352384746,1739069470514,-2072.47,0.00011495,2]
[352384747,1739069470525,-545.48,0.00011495,2]
[352384748,1739069470533,-852.61,0.00011495,2]
[352384749,1739069470543,-1204.52,0.00011495,2]
[352384750,1739069470552,-581.58,0.00011495,2]
[352384751,1739069470562,-1195.82,0.00011495,2]
[352384752,1739069470571,-500.0,0.00011495,2]
[352384753,1739069470580,-1261.96,0.00011495,2]
[352384754,1739069470589,-1407.94,0.00011495,2]
[352384755,1739069470598,-885.46,0.00011495,2]
[352384756,1739069470607,-1113.07,0.00011496,2]
[352384757,1739069470616,-1207.41,0.00011496,2]
[352384758,1739069470625,-1237.76,0.00011496,2]
[352384759,1739069470635,-2295.98,0.00011496,2]
[352384760,1739069470644,-918.0,0.00011496,2]
[352384761,1739069470654,-974.27,0.00011496,2]
[352384762,1739069470664,-1487.4,0.00011496,2]
[352384763,1739069470674,-1078.29,0.00011496,2]
[352384764,1739069470683,-1542.41,0.00011496,2]
[352384765,1739069470693,-1875.97,0.00011496,2]
[352384766,1739069470703,-5000.0,0.000115,2]
[352384767,1739069470712,-500.0,0.00011506,2]
[352384768,1739069470722,-500.0,0.00011506,2]
[352384769,1739069470733,-500.0,0.00011506,2]
[352384770,1739069470742,-500.0,0.00011506,2]
[352384771,1739069470751,-500.0,0.00011506,2]
[352384772,1739069470761,-500.0,0.00011506,2]
[352384773,1739069470773,-500.0,0.00011506,2]
[352384774,1739069470784,-345.86464047,0.00011506,2]
[352384775,1739069470793,-500.0,0.00011506,2]
[352384776,1739069470804,-500.0,0.00011506,2]
[352384777,1739069470816,-193.04,0.00011506,2]
[352384778,1739069470824,-500.0,0.00011506,2]
[352384779,1739069470835,-579.76,0.00011506,2]
[352384780,1739069470845,-576.76,0.00011506,2]
[352384781,1739069470855,-585.88,0.00011506,2]
[352384782,1739069470865,-651.15,0.00011506,2]
[352384783,1739069470874,-500.0,0.00011506,2]
[352384784,1739069470884,-500.0,0.00011506,2]
[352384785,1739069470895,-500.0,0.00011506,2]
[352384786,1739069470907,-792.41,0.00011506,2]
[352384787,1739069470916,-500.0,0.00011506,2]
[352384788,1739069470926,-948.02,0.00011506,2]
[352384789,1739069470936,-816.74,0.00011506,2]
[352384790,1739069470945,-5000.0,0.00011506,2]
[352384791,1739069470954,-5003.72728785,0.00011506,2]
[352384792,1739069470964,-2751.0,0.00011507,2]
[352384793,1739069470973,-1384.0,0.00011507,2]
[352384794,1739069470982,-4123.09482822,0.00011532,2]
[352384795,1739069470990,-150.0,0.00011533,2]
[352384796,1739069471000,-1384.0,0.00011534,2]